[Event "Titled Tuesday Blitz July 18 Early 2023"]
[White "Donchenko, Alexander"]
[Black "Souleidis, Georgios"]
[WhiteFideId "24603295"]
[BlackFideId "4206827"]
[WhiteElo "2864"]
[BlackElo "2580"]
[Result "1-0"]
[Round "2"]
[TimeControl "180+2"]
[Date "2023.07.18"]
[WhiteClock "0:00:49"]
[BlackClock "0:00:01"]
[Board "37"]

1. d4 {[%clk 0:02:49]}  d5 {[%clk 0:02:57]} 2. Nf3 {[%clk 0:02:49]}  Nf6 {[%clk 0:02:56]} 3. Bf4 {[%clk 0:02:50]}  c5 {[%clk 0:02:55]} 4. e3 {[%clk 0:02:50]}  Nc6 {[%clk 0:02:52]} 5. Nbd2 {[%clk 0:02:50]}  cxd4 {[%clk 0:02:50]} 6. exd4 {[%clk 0:02:51]}  Bf5 {[%clk 0:02:50]} 7. Bb5 {[%clk 0:02:51]}  Qb6 {[%clk 0:02:47]} 8. c4 {[%clk 0:02:48]}  dxc4 {[%clk 0:02:42]} 9. a4 {[%clk 0:02:48]}  Bd3 {[%clk 0:02:21]} 10. Ne5 {[%clk 0:02:38]}  Qxd4 {[%clk 0:01:23]} 11. Nxc6 {[%clk 0:02:21]}  Qxf4 {[%clk 0:01:13]} 12. Ne5+ {[%clk 0:02:19]}  Kd8 {[%clk 0:01:12]} 13. Ndxc4 {[%clk 0:01:56]}  Qe4+ {[%clk 0:01:08]} 14. Ne3 {[%clk 0:01:56]}  Qxe5 {[%clk 0:01:01]} 15. Qxd3+ {[%clk 0:01:56]}  Qd6 {[%clk 0:01:00]} 16. Qb3 {[%clk 0:01:50]}  Kc8 {[%clk 0:00:46]} 17. O-O {[%clk 0:01:35]}  a6 {[%clk 0:00:23]} 18. Rfd1 {[%clk 0:01:23]}  Qe5 {[%clk 0:00:21]} 19. Rac1+ {[%clk 0:01:08]}  Kb8 {[%clk 0:00:21]} 20. Bc6 {[%clk 0:00:59]}  Ra7 {[%clk 0:00:06]} 21. Rd8+ {[%clk 0:00:48]}  Kc7 {[%clk 0:00:06]} 22. Bxb7+ {[%clk 0:00:48]}  Kxd8 {[%clk 0:00:04]} 23. Qb6+ {[%clk 0:00:49]}  Kd7 {[%clk 0:00:01]} 24. Qc6+ {[%clk 0:00:49]} 1-0


[Site "https://www.chess.com"]

[Event "Titled Tuesday Blitz July 18 Early 2023"]
[White "Vitiugov, Nikita"]
[Black "Gavrilov, Maxim"]
[WhiteFideId "4152956"]
[BlackFideId "24271454"]
[WhiteElo "2850"]
[BlackElo "2573"]
[Result "1-0"]
[Round "2"]
[TimeControl "180+2"]
[Date "2023.07.18"]
[WhiteClock "0:00:06"]
[BlackClock "0:00:00"]
[Board "41"]

1. e4 {[%clk 0:03:00]}  c5 {[%clk 0:02:57]} 2. Nf3 {[%clk 0:02:59]}  d6 {[%clk 0:02:57]} 3. d4 {[%clk 0:02:59]}  cxd4 {[%clk 0:02:58]} 4. Nxd4 {[%clk 0:02:59]}  Nf6 {[%clk 0:02:59]} 5. Nc3 {[%clk 0:02:59]}  a6 {[%clk 0:02:59]} 6. Bd3 {[%clk 0:02:53]}  e5 {[%clk 0:02:57]} 7. Nb3 {[%clk 0:02:45]}  Be7 {[%clk 0:02:57]} 8. O-O {[%clk 0:02:44]}  O-O {[%clk 0:02:56]} 9. Kh1 {[%clk 0:02:40]}  b5 {[%clk 0:02:53]} 10. a4 {[%clk 0:02:17]}  b4 {[%clk 0:02:51]} 11. Nd5 {[%clk 0:02:10]}  Bb7 {[%clk 0:02:28]} 12. Nxe7+ {[%clk 0:01:48]}  Qxe7 {[%clk 0:02:25]} 13. Bg5 {[%clk 0:01:48]}  h6 {[%clk 0:02:20]} 14. Bxf6 {[%clk 0:01:47]}  Qxf6 {[%clk 0:02:19]} 15. Na5 {[%clk 0:01:42]}  Ra7 {[%clk 0:02:00]} 16. Qd2 {[%clk 0:01:32]}  d5 {[%clk 0:01:29]} 17. Nxb7 {[%clk 0:01:20]}  Rxb7 {[%clk 0:01:21]} 18. exd5 {[%clk 0:01:20]}  Nd7 {[%clk 0:01:21]} 19. f4 {[%clk 0:01:12]}  Qd6 {[%clk 0:01:13]} 20. Rae1 {[%clk 0:01:06]}  a5 {[%clk 0:00:57]} 21. Bb5 {[%clk 0:01:05]}  exf4 {[%clk 0:00:49]} 22. Qxf4 {[%clk 0:00:57]}  Qxf4 {[%clk 0:00:36]} 23. Rxf4 {[%clk 0:00:56]}  Nf6 {[%clk 0:00:35]} 24. d6 {[%clk 0:00:56]}  Rd8 {[%clk 0:00:35]} 25. Rd4 {[%clk 0:00:54]}  Rb6 {[%clk 0:00:33]} 26. d7 {[%clk 0:00:54]}  Re6 {[%clk 0:00:29]} 27. Rxe6 {[%clk 0:00:52]}  fxe6 {[%clk 0:00:30]} 28. Rd6 {[%clk 0:00:51]}  Kf7 {[%clk 0:00:29]} 29. Bc4 {[%clk 0:00:44]}  Ke7 {[%clk 0:00:25]} 30. Rxe6+ {[%clk 0:00:44]}  Kxd7 {[%clk 0:00:24]} 31. Ra6 {[%clk 0:00:41]}  Kc7 {[%clk 0:00:22]} 32. h3 {[%clk 0:00:40]}  Rd1+ {[%clk 0:00:19]} 33. Kh2 {[%clk 0:00:40]}  Rd2 {[%clk 0:00:19]} 34. Rxa5 {[%clk 0:00:38]}  Rxc2 {[%clk 0:00:19]} 35. b3 {[%clk 0:00:39]}  Ne4 {[%clk 0:00:17]} 36. Ra7+ {[%clk 0:00:37]}  Kb6 {[%clk 0:00:15]} 37. Rxg7 {[%clk 0:00:38]}  Nd2 {[%clk 0:00:15]} 38. Rg6+ {[%clk 0:00:36]}  Kc5 {[%clk 0:00:15]} 39. Bb5 {[%clk 0:00:32]}  Kd4 {[%clk 0:00:09]} 40. a5 {[%clk 0:00:20]}  Nxb3 {[%clk 0:00:08]} 41. a6 {[%clk 0:00:20]}  Ra2 {[%clk 0:00:07]} 42. Rg4+ {[%clk 0:00:16]}  Kc5 {[%clk 0:00:07]} 43. Bd3 {[%clk 0:00:14]}  Nd4 {[%clk 0:00:06]} 44. Rg7 {[%clk 0:00:10]}  b3 {[%clk 0:00:06]} 45. Rc7+ {[%clk 0:00:10]}  Kb6 {[%clk 0:00:06]} 46. Rb7+ {[%clk 0:00:10]}  Kc6 {[%clk 0:00:04]} 47. Be4+ {[%clk 0:00:09]}  Kc5 {[%clk 0:00:05]} 48. a7 {[%clk 0:00:09]}  b2 {[%clk 0:00:04]} 49. Rxb2 {[%clk 0:00:07]}  Rxa7 {[%clk 0:00:04]} 50. Rf2 {[%clk 0:00:06]}  Rg7 {[%clk 0:00:04]} 51. Rf6 {[%clk 0:00:06]}  h5 {[%clk 0:00:04]} 52. Rh6 {[%clk 0:00:05]}  Rg5 {[%clk 0:00:04]} 53. Bg6 {[%clk 0:00:05]}  Ne2 {[%clk 0:00:03]} 54. Rxh5 {[%clk 0:00:05]}  Rxh5 {[%clk 0:00:02]} 55. Bxh5 {[%clk 0:00:06]}  Nf4 {[%clk 0:00:02]} 56. g3 {[%clk 0:00:06]}  Nxh5 {[%clk 0:00:03]} 57. g4 {[%clk 0:00:06]}  Ng7 {[%clk 0:00:03]} 58. h4 {[%clk 0:00:06]}  Kd6 {[%clk 0:00:04]} 59. h5 {[%clk 0:00:06]}  Ke7 {[%clk 0:00:04]} 60. h6 {[%clk 0:00:07]}  Nh5 {[%clk 0:00:00]} 61. h7 {[%clk 0:00:06]} 1-0


[Site "https://www.chess.com"]

[Event "Titled Tuesday Blitz July 18 Early 2023"]
[White "Chor, Kevin"]
[Black "Bacrot, Etienne"]
[WhiteFideId "2090740"]
[BlackFideId "605506"]
[WhiteElo "2569"]
[BlackElo "2847"]
[Result "0-1"]
[Round "2"]
[TimeControl "180+2"]
[Date "2023.07.18"]
[WhiteClock "0:00:00"]
[BlackClock "0:00:34"]
[Board "44"]

1. e4 {[%clk 0:02:56]}  c5 {[%clk 0:02:59]} 2. Nf3 {[%clk 0:02:52]}  d6 {[%clk 0:03:00]} 3. d4 {[%clk 0:02:51]}  cxd4 {[%clk 0:03:00]} 4. Nxd4 {[%clk 0:02:52]}  Nf6 {[%clk 0:03:00]} 5. Nc3 {[%clk 0:02:48]}  Nc6 {[%clk 0:03:01]} 6. Bg5 {[%clk 0:02:47]}  e6 {[%clk 0:03:01]} 7. Qd2 {[%clk 0:02:47]}  a6 {[%clk 0:03:01]} 8. O-O-O {[%clk 0:02:47]}  Bd7 {[%clk 0:03:02]} 9. f3 {[%clk 0:02:45]}  Nxd4 {[%clk 0:02:57]} 10. Qxd4 {[%clk 0:02:44]}  Be7 {[%clk 0:02:58]} 11. Kb1 {[%clk 0:02:42]}  Qc7 {[%clk 0:02:58]} 12. g4 {[%clk 0:02:33]}  h5 {[%clk 0:02:57]} 13. gxh5 {[%clk 0:02:28]}  Nxh5 {[%clk 0:02:55]} 14. Bxe7 {[%clk 0:02:26]}  Kxe7 {[%clk 0:02:56]} 15. Rg1 {[%clk 0:02:25]}  Rad8 {[%clk 0:02:40]} 16. Qe3 {[%clk 0:02:03]}  Qc5 {[%clk 0:02:37]} 17. Rd4 {[%clk 0:02:01]}  Bc6 {[%clk 0:02:15]} 18. Rg5 {[%clk 0:01:33]}  e5 {[%clk 0:02:13]} 19. Rd3 {[%clk 0:01:33]}  Qxe3 {[%clk 0:02:03]} 20. Rxe3 {[%clk 0:01:33]}  g6 {[%clk 0:01:58]} 21. Ne2 {[%clk 0:00:48]}  Ng7 {[%clk 0:01:43]} 22. Rg2 {[%clk 0:00:39]}  Ne6 {[%clk 0:01:43]} 23. c3 {[%clk 0:00:32]}  Rh4 {[%clk 0:01:42]} 24. Rf2 {[%clk 0:00:20]}  Ng5 {[%clk 0:01:30]} 25. Ng3 {[%clk 0:00:17]}  Rdh8 {[%clk 0:01:28]} 26. Ree2 {[%clk 0:00:17]}  Ne6 {[%clk 0:01:21]} 27. Kc2 {[%clk 0:00:16]}  Nf4 {[%clk 0:01:13]} 28. Rd2 {[%clk 0:00:17]}  Ba4+ {[%clk 0:00:52]} 29. b3 {[%clk 0:00:17]}  Bd7 {[%clk 0:00:52]} 30. Bc4 {[%clk 0:00:17]}  b5 {[%clk 0:00:49]} 31. Bd5 {[%clk 0:00:16]}  Nxd5 {[%clk 0:00:48]} 32. exd5 {[%clk 0:00:17]}  f5 {[%clk 0:00:48]} 33. Nf1 {[%clk 0:00:16]}  f4 {[%clk 0:00:43]} 34. Kb2 {[%clk 0:00:16]}  g5 {[%clk 0:00:43]} 35. c4 {[%clk 0:00:16]}  bxc4 {[%clk 0:00:42]} 36. bxc4 {[%clk 0:00:17]}  Rb8+ {[%clk 0:00:39]} 37. Kc3 {[%clk 0:00:16]}  g4 {[%clk 0:00:38]} 38. Rde2 {[%clk 0:00:07]}  Rc8 {[%clk 0:00:37]} 39. Nd2 {[%clk 0:00:06]}  Bf5 {[%clk 0:00:35]} 40. fxg4 {[%clk 0:00:05]}  Bxg4 {[%clk 0:00:34]} 41. Rxf4 {[%clk 0:00:06]}  Rh3+ {[%clk 0:00:34]} 42. Kb2 {[%clk 0:00:00]}  Bxe2 {[%clk 0:00:34]} 0-1


[Site "https://www.chess.com"]

[Event "Titled Tuesday Blitz July 18 Early 2023"]
[White "Harsh Suresh"]
[Black "Zhang, Eric"]
[WhiteFideId "45018464"]
[BlackFideId "30907667"]
[WhiteElo "2835"]
[BlackElo "2568"]
[Result "1-0"]
[Round "2"]
[TimeControl "180+2"]
[Date "2023.07.18"]
[WhiteClock "0:02:55"]
[BlackClock "0:01:18"]
[Board "48"]

1. e4 {[%clk 0:03:00]}  c5 {[%clk 0:02:59]} 2. Nc3 {[%clk 0:02:59]}  d6 {[%clk 0:02:58]} 3. f4 {[%clk 0:03:00]}  Nc6 {[%clk 0:02:57]} 4. Nf3 {[%clk 0:03:00]}  g6 {[%clk 0:02:58]} 5. Bc4 {[%clk 0:03:00]}  Bg7 {[%clk 0:02:58]} 6. O-O {[%clk 0:03:00]}  e6 {[%clk 0:02:56]} 7. d3 {[%clk 0:03:01]}  Nge7 {[%clk 0:02:57]} 8. Qe1 {[%clk 0:03:02]}  O-O {[%clk 0:02:56]} 9. f5 {[%clk 0:03:02]}  exf5 {[%clk 0:02:55]} 10. Qh4 {[%clk 0:03:02]}  Ne5 {[%clk 0:02:38]} 11. Bg5 {[%clk 0:03:01]}  N5c6 {[%clk 0:02:08]} 12. Nd5 {[%clk 0:02:58]}  Re8 {[%clk 0:02:07]} 13. Nf6+ {[%clk 0:02:59]}  Bxf6 {[%clk 0:02:01]} 14. Bxf6 {[%clk 0:02:59]}  h5 {[%clk 0:01:55]} 15. Qg5 {[%clk 0:02:57]}  fxe4 {[%clk 0:01:18]} 16. Qh6 {[%clk 0:02:55]} 1-0


[Site "https://www.chess.com"]

[Event "Titled Tuesday Blitz July 18 Early 2023"]
[White "Kashlinskaya, Alina"]
[Black "Volovich, Vasily"]
[WhiteFideId "4198026"]
[BlackFideId "34169676"]
[WhiteElo "2560"]
[BlackElo "2772"]
[Result "1-0"]
[Round "2"]
[TimeControl "180+2"]
[Date "2023.07.18"]
[WhiteClock "0:00:35"]
[BlackClock "0:00:00"]
[Board "53"]

1. Nf3 {[%clk 0:03:00]}  Nf6 {[%clk 0:02:59]} 2. g3 {[%clk 0:03:01]}  g6 {[%clk 0:03:00]} 3. b3 {[%clk 0:03:01]}  Bg7 {[%clk 0:03:00]} 4. Bb2 {[%clk 0:03:02]}  O-O {[%clk 0:03:01]} 5. Bg2 {[%clk 0:03:02]}  d5 {[%clk 0:03:01]} 6. O-O {[%clk 0:03:02]}  c5 {[%clk 0:03:02]} 7. d4 {[%clk 0:03:01]}  Ne4 {[%clk 0:03:01]} 8. Nbd2 {[%clk 0:03:00]}  Nc6 {[%clk 0:03:01]} 9. e3 {[%clk 0:02:59]}  Bf5 {[%clk 0:03:00]} 10. h3 {[%clk 0:02:58]}  Rc8 {[%clk 0:02:59]} 11. g4 {[%clk 0:02:58]}  Nxd2 {[%clk 0:02:56]} 12. Nxd2 {[%clk 0:02:52]}  Be6 {[%clk 0:02:50]} 13. Nf3 {[%clk 0:02:52]}  Qb6 {[%clk 0:02:46]} 14. Re1 {[%clk 0:02:32]}  h6 {[%clk 0:02:38]} 15. Ne5 {[%clk 0:02:01]}  cxd4 {[%clk 0:01:57]} 16. exd4 {[%clk 0:02:01]}  Nxe5 {[%clk 0:01:57]} 17. dxe5 {[%clk 0:02:01]}  Rfd8 {[%clk 0:01:46]} 18. Bd4 {[%clk 0:02:01]}  Qa5 {[%clk 0:01:38]} 19. c3 {[%clk 0:02:01]}  Rc7 {[%clk 0:01:20]} 20. Qd3 {[%clk 0:01:55]}  Rdc8 {[%clk 0:01:18]} 21. f4 {[%clk 0:01:54]}  Bd7 {[%clk 0:01:06]} 22. f5 {[%clk 0:01:54]}  Rxc3 {[%clk 0:00:51]} 23. Bxc3 {[%clk 0:01:53]}  Rxc3 {[%clk 0:00:51]} 24. Qxd5 {[%clk 0:01:50]}  Qb6+ {[%clk 0:00:35]} 25. Kh2 {[%clk 0:01:50]}  Bc6 {[%clk 0:00:34]} 26. Qd2 {[%clk 0:01:50]}  Qb4 {[%clk 0:00:26]} 27. Rad1 {[%clk 0:01:36]}  Bxg2 {[%clk 0:00:24]} 28. Kxg2 {[%clk 0:01:34]}  Qc5 {[%clk 0:00:23]} 29. Qd4 {[%clk 0:01:17]}  Rc2+ {[%clk 0:00:20]} 30. Kg1 {[%clk 0:01:15]}  Qc6 {[%clk 0:00:16]} 31. Rd2 {[%clk 0:01:11]}  Rxd2 {[%clk 0:00:13]} 32. Qxd2 {[%clk 0:01:11]}  gxf5 {[%clk 0:00:12]} 33. gxf5 {[%clk 0:01:11]}  Qf3 {[%clk 0:00:12]} 34. Qf2 {[%clk 0:01:09]}  Qxh3 {[%clk 0:00:11]} 35. f6 {[%clk 0:01:05]}  exf6 {[%clk 0:00:10]} 36. exf6 {[%clk 0:01:06]}  Qg4+ {[%clk 0:00:10]} 37. Kf1 {[%clk 0:01:00]}  Qh3+ {[%clk 0:00:10]} 38. Kg1 {[%clk 0:00:50]}  Qg4+ {[%clk 0:00:10]} 39. Qg2 {[%clk 0:00:51]}  Qxg2+ {[%clk 0:00:07]} 40. Kxg2 {[%clk 0:00:51]}  Bxf6 {[%clk 0:00:08]} 41. Re8+ {[%clk 0:00:49]}  Kg7 {[%clk 0:00:08]} 42. Rb8 {[%clk 0:00:50]}  b6 {[%clk 0:00:08]} 43. Rb7 {[%clk 0:00:50]}  Bd4 {[%clk 0:00:06]} 44. Rxa7 {[%clk 0:00:50]}  Kg6 {[%clk 0:00:06]} 45. a4 {[%clk 0:00:47]}  f5 {[%clk 0:00:05]} 46. Rb7 {[%clk 0:00:44]}  Kg5 {[%clk 0:00:04]} 47. b4 {[%clk 0:00:45]}  f4 {[%clk 0:00:03]} 48. a5 {[%clk 0:00:45]}  bxa5 {[%clk 0:00:04]} 49. bxa5 {[%clk 0:00:46]}  Kg4 {[%clk 0:00:04]} 50. Rb3 {[%clk 0:00:44]}  h5 {[%clk 0:00:04]} 51. a6 {[%clk 0:00:45]}  h4 {[%clk 0:00:03]} 52. Ra3 {[%clk 0:00:44]}  Ba7 {[%clk 0:00:01]} 53. Rd3 {[%clk 0:00:35]}  Bb6 {[%clk 0:00:01]} 54. Rd6 {[%clk 0:00:34]}  Ba7 {[%clk 0:00:01]} 55. Rg6+ {[%clk 0:00:34]}  Kf5 {[%clk 0:00:00]} 56. Rg7 {[%clk 0:00:35]} 1-0


[Site "https://www.chess.com"]

[Event "Titled Tuesday Blitz July 18 Early 2023"]
[White "Zaragatski, Ilja"]
[Black "Tsaruk, Maksim"]
[WhiteFideId "4655192"]
[BlackFideId "13511173"]
[WhiteElo "2557"]
[BlackElo "2772"]
[Result "1-0"]
[Round "2"]
[TimeControl "180+2"]
[Date "2023.07.18"]
[WhiteClock "0:00:11"]
[BlackClock "0:00:04"]
[Board "55"]

1. g3 {[%clk 0:02:55]}  d5 {[%clk 0:02:59]} 2. Nf3 {[%clk 0:02:54]}  Nf6 {[%clk 0:03:00]} 3. Bg2 {[%clk 0:02:54]}  Bf5 {[%clk 0:02:59]} 4. c4 {[%clk 0:02:54]}  c6 {[%clk 0:03:00]} 5. Qb3 {[%clk 0:02:53]}  Qb6 {[%clk 0:02:57]} 6. cxd5 {[%clk 0:02:53]}  Qxb3 {[%clk 0:02:44]} 7. axb3 {[%clk 0:02:54]}  Bxb1 {[%clk 0:02:40]} 8. dxc6 {[%clk 0:02:53]}  Nxc6 {[%clk 0:02:20]} 9. Rxb1 {[%clk 0:02:53]}  e6 {[%clk 0:02:20]} 10. O-O {[%clk 0:02:52]}  Bb4 {[%clk 0:02:16]} 11. d3 {[%clk 0:02:38]}  Ke7 {[%clk 0:02:07]} 12. Ra1 {[%clk 0:02:34]}  Rac8 {[%clk 0:01:59]} 13. Be3 {[%clk 0:02:29]}  a5 {[%clk 0:00:51]} 14. Rfc1 {[%clk 0:02:28]}  Nd5 {[%clk 0:00:51]} 15. Bg5+ {[%clk 0:02:19]}  f6 {[%clk 0:00:51]} 16. Bd2 {[%clk 0:02:20]}  Bxd2 {[%clk 0:00:50]} 17. Nxd2 {[%clk 0:02:20]}  Nd4 {[%clk 0:00:50]} 18. Kf1 {[%clk 0:02:17]}  b6 {[%clk 0:00:47]} 19. e3 {[%clk 0:02:17]}  Nc2 {[%clk 0:00:48]} 20. Rab1 {[%clk 0:02:12]}  Ndb4 {[%clk 0:00:45]} 21. Nc4 {[%clk 0:01:47]}  Rc7 {[%clk 0:00:10]} 22. Nxb6 {[%clk 0:01:24]}  Nxd3 {[%clk 0:00:09]} 23. Rd1 {[%clk 0:01:23]}  Ncb4 {[%clk 0:00:09]} 24. Nc4 {[%clk 0:01:19]}  Rd8 {[%clk 0:00:08]} 25. Nxa5 {[%clk 0:01:16]}  Rc2 {[%clk 0:00:08]} 26. Kg1 {[%clk 0:00:57]}  Rxf2 {[%clk 0:00:08]} 27. Bf1 {[%clk 0:00:56]}  Rf3 {[%clk 0:00:06]} 28. Nc4 {[%clk 0:00:45]}  Rf5 {[%clk 0:00:04]} 29. Ra1 {[%clk 0:00:42]}  Kf8 {[%clk 0:00:04]} 30. Ra4 {[%clk 0:00:40]}  Rb5 {[%clk 0:00:02]} 31. Ra7 {[%clk 0:00:27]}  Rbb8 {[%clk 0:00:02]} 32. Rd2 {[%clk 0:00:20]}  h5 {[%clk 0:00:03]} 33. Na5 {[%clk 0:00:18]}  Nc5 {[%clk 0:00:04]} 34. Rxd8+ {[%clk 0:00:13]}  Rxd8 {[%clk 0:00:04]} 35. Nc4 {[%clk 0:00:14]}  Ne4 {[%clk 0:00:03]} 36. Rb7 {[%clk 0:00:13]}  Nd5 {[%clk 0:00:03]} 37. b4 {[%clk 0:00:13]}  h4 {[%clk 0:00:01]} 38. gxh4 {[%clk 0:00:13]}  f5 {[%clk 0:00:02]} 39. b5 {[%clk 0:00:13]}  f4 {[%clk 0:00:03]} 40. exf4 {[%clk 0:00:13]}  Nxf4 {[%clk 0:00:04]} 41. b6 {[%clk 0:00:14]}  Rd1 {[%clk 0:00:03]} 42. Rb8+ {[%clk 0:00:11]}  Kf7 {[%clk 0:00:03]} 43. b7 {[%clk 0:00:12]}  Ne2+ {[%clk 0:00:04]} 44. Kg2 {[%clk 0:00:12]}  Nf4+ {[%clk 0:00:04]} 45. Kf3 {[%clk 0:00:12]}  Rxf1+ {[%clk 0:00:04]} 46. Kxe4 {[%clk 0:00:12]}  Nd5 {[%clk 0:00:03]} 47. Rf8+ {[%clk 0:00:11]}  Kxf8 {[%clk 0:00:04]} 48. b8=Q+ {[%clk 0:00:12]}  Kf7 {[%clk 0:00:04]} 49. Ne5+ {[%clk 0:00:11]}  Ke7 {[%clk 0:00:04]} 50. Qb7+ {[%clk 0:00:11]}  Ke8 {[%clk 0:00:04]} 51. Qd7+ {[%clk 0:00:10]}  Kf8 {[%clk 0:00:04]} 52. Qd8# {[%clk 0:00:11]} 1-0


[Site "https://www.chess.com"]

[Event "Titled Tuesday Blitz July 18 Early 2023"]
[White "Portela Peleteiro, Alberto"]
[Black "Mahdavi, Reza"]
[WhiteFideId "22276106"]
[BlackFideId "12595926"]
[WhiteElo "2556"]
[BlackElo "2768"]
[Result "0-1"]
[Round "2"]
[TimeControl "180+2"]
[Date "2023.07.18"]
[WhiteClock "0:00:08"]
[BlackClock "0:00:17"]
[Board "57"]

1. e4 {[%clk 0:03:00]}  c5 {[%clk 0:02:47]} 2. Ne2 {[%clk 0:03:00]}  d6 {[%clk 0:02:47]} 3. g3 {[%clk 0:03:00]}  Nf6 {[%clk 0:02:45]} 4. Bg2 {[%clk 0:03:00]}  Nc6 {[%clk 0:02:46]} 5. O-O {[%clk 0:02:58]}  g6 {[%clk 0:02:47]} 6. d4 {[%clk 0:02:58]}  cxd4 {[%clk 0:02:47]} 7. Nxd4 {[%clk 0:02:59]}  Nxd4 {[%clk 0:02:47]} 8. Qxd4 {[%clk 0:02:59]}  Bg7 {[%clk 0:02:48]} 9. Bg5 {[%clk 0:02:56]}  O-O {[%clk 0:02:46]} 10. Qd2 {[%clk 0:02:54]}  Be6 {[%clk 0:02:43]} 11. Nc3 {[%clk 0:02:41]}  Qc8 {[%clk 0:02:38]} 12. Rfe1 {[%clk 0:02:37]}  Re8 {[%clk 0:02:36]} 13. Nd5 {[%clk 0:02:33]}  Bxd5 {[%clk 0:02:35]} 14. exd5 {[%clk 0:02:34]}  Qc7 {[%clk 0:02:25]} 15. c3 {[%clk 0:02:32]}  Rac8 {[%clk 0:02:25]} 16. a4 {[%clk 0:02:28]}  Ng4 {[%clk 0:02:25]} 17. Bh3 {[%clk 0:02:06]}  Ne5 {[%clk 0:02:21]} 18. Rxe5 {[%clk 0:02:05]}  Bxe5 {[%clk 0:02:22]} 19. Bxc8 {[%clk 0:02:05]}  Rxc8 {[%clk 0:02:23]} 20. Re1 {[%clk 0:02:01]}  Qc4 {[%clk 0:02:22]} 21. Bxe7 {[%clk 0:01:53]}  Qxa4 {[%clk 0:02:16]} 22. f4 {[%clk 0:01:52]}  Bg7 {[%clk 0:02:15]} 23. Bxd6 {[%clk 0:01:53]}  h5 {[%clk 0:02:14]} 24. Be5 {[%clk 0:01:51]}  Bf8 {[%clk 0:02:14]} 25. d6 {[%clk 0:01:50]}  Rd8 {[%clk 0:02:14]} 26. Qd5 {[%clk 0:01:50]}  Qa6 {[%clk 0:02:08]} 27. Rd1 {[%clk 0:01:47]}  Qb6+ {[%clk 0:02:08]} 28. Kh1 {[%clk 0:01:40]}  Qxb2 {[%clk 0:02:08]} 29. c4 {[%clk 0:01:40]}  Qb3 {[%clk 0:02:07]} 30. c5 {[%clk 0:01:34]}  Qa4 {[%clk 0:02:05]} 31. Bc3 {[%clk 0:01:25]}  b6 {[%clk 0:01:51]} 32. Bf6 {[%clk 0:01:14]}  Rd7 {[%clk 0:01:45]} 33. Ra1 {[%clk 0:01:03]}  Qc2 {[%clk 0:01:35]} 34. Bd4 {[%clk 0:00:35]}  bxc5 {[%clk 0:01:34]} 35. Bxc5 {[%clk 0:00:36]}  Qe2 {[%clk 0:01:23]} 36. Rd1 {[%clk 0:00:34]}  a5 {[%clk 0:01:19]} 37. Qd3 {[%clk 0:00:33]}  Qe6 {[%clk 0:01:14]} 38. Qd5 {[%clk 0:00:32]}  Qg4 {[%clk 0:00:55]} 39. Re1 {[%clk 0:00:32]}  h4 {[%clk 0:00:51]} 40. Kg2 {[%clk 0:00:24]}  h3+ {[%clk 0:00:50]} 41. Kf2 {[%clk 0:00:24]}  Kh7 {[%clk 0:00:44]} 42. Re8 {[%clk 0:00:22]}  Bg7 {[%clk 0:00:45]} 43. Bd4 {[%clk 0:00:20]}  Qd1 {[%clk 0:00:33]} 44. Re4 {[%clk 0:00:18]}  Qd2+ {[%clk 0:00:32]} 45. Kf3 {[%clk 0:00:18]}  Qd3+ {[%clk 0:00:30]} 46. Kf2 {[%clk 0:00:17]}  f5 {[%clk 0:00:31]} 47. Re5 {[%clk 0:00:14]}  Qd2+ {[%clk 0:00:27]} 48. Kf3 {[%clk 0:00:14]}  a4 {[%clk 0:00:20]} 49. Qe6 {[%clk 0:00:12]}  Rb7 {[%clk 0:00:16]} 50. Re2 {[%clk 0:00:09]}  Qxd4 {[%clk 0:00:16]} 51. g4 {[%clk 0:00:09]}  Rb3+ {[%clk 0:00:16]} 52. Re3 {[%clk 0:00:09]}  Rxe3+ {[%clk 0:00:16]} 53. Qxe3 {[%clk 0:00:10]}  fxg4+ {[%clk 0:00:17]} 54. Kf2 {[%clk 0:00:10]}  Qxe3+ {[%clk 0:00:15]} 55. Kxe3 {[%clk 0:00:11]}  Bf8 {[%clk 0:00:15]} 56. d7 {[%clk 0:00:11]}  Be7 {[%clk 0:00:16]} 57. Ke4 {[%clk 0:00:11]}  a3 {[%clk 0:00:16]} 58. Ke5 {[%clk 0:00:12]}  a2 {[%clk 0:00:16]} 59. Ke6 {[%clk 0:00:08]}  Bd8 {[%clk 0:00:17]} 0-1


[Site "https://www.chess.com"]

[Event "Titled Tuesday Blitz July 18 Early 2023"]
[White "Nazari, Arad"]
[Black "Arencibia Monduy, Antonio"]
[WhiteFideId "12577324"]
[BlackFideId "3507939"]
[WhiteElo "2765"]
[BlackElo "2554"]
[Result "1-0"]
[Round "2"]
[TimeControl "180+2"]
[Date "2023.07.18"]
[WhiteClock "0:00:09"]
[BlackClock "0:00:00"]
[Board "60"]

1. e4 {[%clk 0:03:00]}  e6 {[%clk 0:02:59]} 2. d4 {[%clk 0:03:00]}  d5 {[%clk 0:02:58]} 3. e5 {[%clk 0:03:01]}  c5 {[%clk 0:02:57]} 4. c3 {[%clk 0:03:02]}  Nc6 {[%clk 0:02:57]} 5. Nf3 {[%clk 0:03:02]}  cxd4 {[%clk 0:02:57]} 6. cxd4 {[%clk 0:03:01]}  Nge7 {[%clk 0:02:57]} 7. Na3 {[%clk 0:02:58]}  Nf5 {[%clk 0:02:57]} 8. Nc2 {[%clk 0:02:58]}  Be7 {[%clk 0:02:56]} 9. Bd3 {[%clk 0:02:58]}  O-O {[%clk 0:02:54]} 10. O-O {[%clk 0:02:54]}  Bd7 {[%clk 0:02:52]} 11. a3 {[%clk 0:02:53]}  Rc8 {[%clk 0:02:51]} 12. b4 {[%clk 0:02:40]}  a6 {[%clk 0:02:51]} 13. Rb1 {[%clk 0:02:33]}  Na7 {[%clk 0:02:51]} 14. g4 {[%clk 0:02:18]}  Nh4 {[%clk 0:02:46]} 15. Nxh4 {[%clk 0:02:17]}  Bxh4 {[%clk 0:02:46]} 16. f4 {[%clk 0:02:16]}  Be7 {[%clk 0:02:27]} 17. f5 {[%clk 0:02:15]}  Bg5 {[%clk 0:02:16]} 18. f6 {[%clk 0:02:13]}  gxf6 {[%clk 0:01:52]} 19. Bxg5 {[%clk 0:02:12]}  fxg5 {[%clk 0:01:52]} 20. Rf6 {[%clk 0:02:13]}  Bb5 {[%clk 0:01:35]} 21. Rb3 {[%clk 0:01:35]}  Bxd3 {[%clk 0:00:45]} 22. Qxd3 {[%clk 0:01:11]}  Qc7 {[%clk 0:00:45]} 23. Ne1 {[%clk 0:00:47]}  Qc1 {[%clk 0:00:36]} 24. Kf2 {[%clk 0:00:41]}  Nb5 {[%clk 0:00:24]} 25. Rh6 {[%clk 0:00:33]}  f5 {[%clk 0:00:24]} 26. exf6 {[%clk 0:00:32]}  Rf7 {[%clk 0:00:21]} 27. Nf3 {[%clk 0:00:23]}  Rc2+ {[%clk 0:00:20]} 28. Kg3 {[%clk 0:00:22]}  Qf4+ {[%clk 0:00:18]} 29. Kh3 {[%clk 0:00:20]}  Rc4 {[%clk 0:00:05]} 30. Qe3 {[%clk 0:00:07]}  Nxd4 {[%clk 0:00:05]} 31. Qxf4 {[%clk 0:00:05]}  gxf4 {[%clk 0:00:06]} 32. Nxd4 {[%clk 0:00:05]}  Rxd4 {[%clk 0:00:06]} 33. g5 {[%clk 0:00:05]}  e5 {[%clk 0:00:04]} 34. Kg4 {[%clk 0:00:06]}  f3+ {[%clk 0:00:02]} 35. Kxf3 {[%clk 0:00:06]}  Rf4+ {[%clk 0:00:01]} 36. Kg3 {[%clk 0:00:07]}  Rf5 {[%clk 0:00:02]} 37. h4 {[%clk 0:00:07]}  e4 {[%clk 0:00:02]} 38. Rc3 {[%clk 0:00:07]}  Rf3+ {[%clk 0:00:01]} 39. Rxf3 {[%clk 0:00:07]}  exf3 {[%clk 0:00:02]} 40. Kxf3 {[%clk 0:00:08]}  Rd7 {[%clk 0:00:02]} 41. Ke3 {[%clk 0:00:09]}  d4+ {[%clk 0:00:02]} 42. Kd3 {[%clk 0:00:09]}  b5 {[%clk 0:00:02]} 43. h5 {[%clk 0:00:08]}  Rd6 {[%clk 0:00:01]} 44. f7+ {[%clk 0:00:08]}  Kxf7 {[%clk 0:00:00]} 45. Rxd6 {[%clk 0:00:09]} 1-0


[Site "https://www.chess.com"]